Cogmind - Beta 14 @@@ ROGUE MODE // 2024.08.07 @ 19:41:54 Player: Daffa0360 Result: Destroyed by D-53 Grenadier with Mini Grenade Launcher Performance ------------- Evolutions (0) 0 Regions Visited (2) 400 Robots Destroyed (29) 145 Value Destroyed (590) 590 Prototype IDs (0) 0 Alien Tech Used (0) 0 Bonus (0) 0 TOTAL SCORE: 1135 Bonus ------- None Cogmind --------- Core Integrity 0/250 Matter 219/300 Energy 246/250 System Corruption 0% Temperature Cool (2) Movement Walking (120) Location -10/Mines Parts ------- > --- POWER (1) -------- Ion Engine > --- PROPULSION (2) --- Aluminum Leg Aluminum Leg > --- UTILITY (2) ------ Small Storage Unit Improved Terrain Scanner > --- WEAPON (2) ------- Light Cannon Light Cannon > --- INVENTORY (8) ---- Aluminum Leg Improved Heat Sink Structural Scanner Sensor Array Hacking Suite Grenade Launcher Mining Laser Peak State ------------ > --- POWER ------------ Light Nuclear Core > --- PROPULSION ------- Aluminum Leg Aluminum Leg > --- UTILITY ---------- Heat Sink Small Storage Unit > --- WEAPON ----------- Assault Rifle Assault Rifle > --- INVENTORY -------- Ion Engine Structural Scanner Improved Terrain Scanner Hacking Suite Light Assault Rifle Light Assault Rifle Grenade Launcher Mining Laser [Rating: 10] Favorites ----------- Power Ion Engine Engine Ion Engine Power Core Light Nuclear Core Propulsion Aluminum Leg Leg Aluminum Leg Utility Small Storage Unit Device Heat Sink Storage Small Storage Unit Weapon Assault Rifle Energy Cannon Beam Cannon Ballistic Gun Assault Rifle Ballistic Cannon Light Cannon Launcher Grenade Launcher Build | -11 -10 -10 ------- Run | Yrd Mat Min Slots Evolved . | . . . Power . | . . . Propulsion . | . . . Utility . | . . . Weapon . | . . . Parts Attached 29 | 6 17 6 Power 5 | 1 3 1 Engine 4 | 1 2 1 Core 1 | . 1 . Reactor . | . . . Propulsion 6 | 2 2 2 Treads . | . . . Leg 6 | 2 2 2 Wheel . | . . . Hover . | . . . Flight . | . . . Utility 7 | 1 3 3 Device 6 | . 3 3 Storage 1 | 1 . . Processor . | . . . Hackware . | . . . Protection . | . . . Artifact . | . . . Weapon 11 | 2 9 . Energy Gun . | . . . Energy Cannon 1 | . 1 . Ballistic Gun 7 | 2 5 . Ballistic Cannon 2 | . 2 . Launcher 1 | . 1 . Special Weapon . | . . . Impact Weapon . | . . . Slashing Weapon . | . . . Piercing Weapon . | . . . Special Melee Weapon . | . . . Unidentified Prototypes . | . . . Parts Lost 3 | . 2 1 Power 1 | . . 1 Propulsion 1 | . 1 . Utility . | . . . Weapon 1 | . 1 . Highest Loss Streak 1 | . 1 1 To Critical Strikes . | . . . Average Slot Usage (%) 90 | . 90 90 Engine 8 | . 7 14 Core 5 | . 6 . Leg 23 | . 22 27 Device 9 | . 10 5 Storage 14 | . 14 14 Energy Cannon 3 | . 4 . Ballistic Gun 12 | . 15 . Ballistic Cannon 11 | . 7 28 Peak Build Rating 10 | 6 10 10 Average Rating 7 | 4 8 8 On Entrance 5 | . 6 9 Naked Turns . | . . . Heaviest Build 17 | 12 17 17 Greatest Support 20 | 20 20 20 Greatest Overweight (x) 1 | 1 1 1 Average Overweight (x) . | . . . Largest Inventory Capacity 8 | 8 8 8 Average Capacity 7 | 7 8 8 Most Carried 8 | 5 8 8 Average Carried 7 | 1 7 7 Final Capacity 8 | 8 8 8 Final Carried 8 | 3 8 7 Class Distribution -------------------- 84% | Mutant 15% | Scavenger-Mutant Dominant Class ---------------- Mutant | -10/Materials Mutant | -10/Mines Resources | -11 -10 -10 ----------- Run | Yrd Mat Min Matter Collected 894 | 268 377 249 Remotely . | . . . Salvage Created 712 | 25 583 104 Parts 62 | 3 49 10 Haulers Intercepted 2 | . 2 . Recyclers Shooed . | . . . Parts Field Recycled . | . . . Retrieved Matter . | . . . Parts Self-Destructed . | . . . Prevented . | . . . Kills | -11 -10 -10 ------- Run | Yrd Mat Min Combat Hostiles Destroyed 20 | . 16 4 Guns 13 | . 13 . Cannons 7 | . 3 4 Classes Destroyed 7 | 1 6 . Worker 2 | . 1 1 Tunneler 1 | 1 . . Hauler 2 | . 2 . Operator 2 | . 2 . Watcher 2 | . 2 . Swarmer 9 | . 9 . Grunt 11 | . 7 4 Best Kill Streak 6 | 1 6 3 Combat Bots Only 6 | . 6 2 Max Kills in Single Turn 1 | 1 1 1 Gunslinging . | . . . Exploded . | . . . Melee . | . . . Uniques/NPCs Destroyed . | . . . Combat | -11 -10 -10 -------- Run | Yrd Mat Min Hostile Shots Fired 144 | . 110 34 Missed 43 | . 29 14 Damage Taken 1049 | . 693 356 Core 268 | . 115 153 Absorbed by Shields . | . . . Core Remaining (%) 100 | 100 . . Volleys Fired 104 | 5 80 19 Largest 2 | 2 2 2 Hottest 80 | 40 80 70 Shots Fired 190 | 10 142 38 Gun 120 | 10 110 . Cannon 70 | . 32 38 Launcher . | . . . Special . | . . . Kinetic 160 | 10 112 38 Thermal 30 | . 30 . Explosive . | . . . Electromagnetic . | . . . Robot Hit Streak 12 | 5 12 7 Robot Miss Streak 5 | 2 5 3 Penetration Max . | . . . Secondary Targets 2 | . 2 . Max Gunslinging Chain 1 | . 1 . Shots Hit Robots 110 | 7 82 21 Core Hits 42 | 1 34 7 Critical Kills . | . . . Critical Parts Destroyed . | . . . Critical Strikes . | . . . Melee Attacks . | . . . Impact . | . . . Slashing . | . . . Piercing . | . . . Sneak Attacks . | . . . Combat Hostiles . | . . . Follow-up Attacks . | . . . Damage Inflicted 1590 | 65 1144 381 Guns 893 | 65 828 . Cannons 697 | . 316 381 Explosions . | . . . Melee . | . . . Ramming . | . . . Kinetic 1289 | 65 843 381 Thermal 301 | . 301 . Explosive . | . . . Electromagnetic . | . . . Impact . | . . . Slashing . | . . . Piercing . | . . . Highest Corruption . | . . . Average Corruption . | . . . Corruption Purged . | . . . Corruption Blocked . | . . . Overload Shots . | . . . Overflow Damage . | . . . Projectiles . | . . . Explosions . | . . . Melee . | . . . Knockbacks 3 | . . 3 Impact . | . . . Kinetic 3 | . . 3 Secondary . | . . . Self-Inflicted Damage . | . . . Shots . | . . . Rammed . | . . . Targets Rammed . | . . . Kicked . | . . . Crushed . | . . . Highest Temperature 165 | . 120 165 Average Temperature 51 | . 40 57 Received Heat Transfer 252 | . 120 132 Siege Activations . | . . . Robots Corrupted . | . . . Combat Hostiles . | . . . Parts Fried . | . . . Impact Corruptions . | . . . Robots Melted . | . . . Combat Hostiles . | . . . Parts Melted 2 | . 2 . Heat Transferred 629 | . 629 . Parts Sabotaged . | . . . Parts Stolen . | . . . Parts Stripped . | . . . Power Chain Reactions . | . . . Alert | -11 -10 -10 ------- Run | Yrd Mat Min Peak Influence 313 | 5 313 159 Initial 64 | . 3 64 Average 136 | 1 142 136 Maximum Alert Level 1 | . 1 . Low Security (%) 75 | 100 69 100 Level 1 24 | . 30 . Level 2 . | . . . Level 3 . | . . . Level 4 . | . . . Level 5 . | . . . High Security . | . . . Max Security . | . . . Squads Dispatched 3 | . 3 . Investigation . | . . . Extermination . | . . . Reinforcement 3 | . 3 . Assault . | . . . Garrison . | . . . Intercept . | . . . Searches Triggered . | . . . Construction Impeded . | . . . Haulers Reinforced . | . . . Active Scanning Responses . | . . . Cargo Convoy Interrupts . | . . . Stealth | -11 -10 -10 --------- Run | Yrd Mat Min Distress Signals 1 | . 1 . Communications Jammed . | . . . Distress Signals . | . . . Times Spotted 42 | . 27 15 Peak Tracking Total 8 | . 4 8 Tactical Retreats 3 | . 1 2 Traps | -11 -10 -10 ------- Run | Yrd Mat Min Traps Triggered . | . . . Indirectly . | . . . Trap Hack Attempts . | . . . Triggered . | . . . Disarmed . | . . . Reprogrammed . | . . . Reused . | . . . Traps Extracted . | . . . Installed . | . . . Triggered . | . . . Machines | -11 -10 -10 ---------- Run | Yrd Mat Min Machines Disabled 1 | . 1 . Max in Single Turn 1 | . 1 . Machines Repaired . | . . . Machines Dismantled . | . . . Machines Sabotaged . | . . . Overloaded Fab Kills . | . . . Hacking | -11 -10 -10 --------- Run | Yrd Mat Min Machines Accessed 2 | . 2 . Terminals 2 | . 2 . Fabricators . | . . . Repair Stations . | . . . Recycling Units . | . . . Scanalyzers . | . . . Garrison Access . | . . . Total Hacks 5 | . 5 . Successful 1 | . 1 . Failed 4 | . 4 . Catastrophic 1 | . 1 . Database Lockouts . | . . . Manual 2 | . 2 . Terminals 5 | . 5 . Fabricators . | . . . Repair Stations . | . . . Recycling Units . | . . . Scanalyzers . | . . . Garrison Access . | . . . Terminal Hacks 1 | . 1 . Locate Traps 1 | . 1 . Fabricator Hacks . | . . . Repair Station Hacks . | . . . Recycling Unit Hacks . | . . . Scanalyzer . | . . . Garrison Access Hacks . | . . . Unauthorized Hacks . | . . . Terminals . | . . . Fabricators . | . . . Repair Stations . | . . . Recycling Units . | . . . Scanalyzers . | . . . Garrison Access . | . . . Data Cores Recovered . | . . . Used . | . . . Hacking Detections 2 | . 2 . Full Trace Events . | . . . Feedback Events . | . . . Feedback Blocked . | . . . Robot Schematics Acquired . | . . . Robots Built . | . . . Authchips . | . . . Time . | . . . Total Robot Build Rating . | . . . Part Schematics Acquired . | . . . Parts Built . | . . . Authchips . | . . . Time . | . . . Total Part Build Rating . | . . . Parts Repaired . | . . . Time . | . . . Parts Recycled . | . . . Recycled Matter . | . . . Retrieved Matter . | . . . Retrieved Components . | . . . Parts Scanalyzed . | . . . Part Schematics Acquired . | . . . Parts Damaged . | . . . Bothacking | -11 -10 -10 ------------ Run | Yrd Mat Min Used RIF Installer . | . . . Robots Hacked . | . . . Non-combat . | . . . Combat . | . . . Robot Hacks Applied . | . . . Relay Couplers Released . | . . . Fabnet Peak Effective % . | . . . Robots Rewired . | . . . Allies Hacked . | . . . Hacks Repelled . | . . . Allies | -11 -10 -10 -------- Run | Yrd Mat Min Total Allies . | . . . Largest Group . | . . . Highest-Rated Group . | . . . Highest-Rated Ally . | . . . Total Orders . | . . . Ally Attacks . | . . . Total Damage . | . . . Kills . | . . . Allies Corrupted . | . . . Allies Melted . | . . . Intel | -11 -10 -10 ------- Run | Yrd Mat Min Robot Analysis Total . | . . . Derelict Logs Recovered 1 | . . 1 Drone Launches . | . . . Drone Recoveries . | . . . Exploration | -11 -10 -10 ------------- Run | Yrd Mat Min Turns Passed 1857 | 73 1467 317 Spaces Moved 997 | 51 753 193 Core 23 | 23 . . Treads . | . . . Legs 974 | 28 753 193 Wheels . | . . . Hover . | . . . Flight . | . . . Fastest Speed 50 | 50 120 120 Average Speed 136 | 91 143 122 Slowest Speed 190 | 120 190 190 Overloaded Moves . | . . . Propulsion Burnouts . | . . . Robots Hopped . | . . . Cave-ins Triggered . | . . . Exploration Rate (%) 45 | 4 89 44 Regions Visited 2 Branch Regions 1 Pre-discovered Areas 2 | . . 2 Known Exits Taken . | . . . Unknown Exits Taken 2 | 1 1 . Scrap Searched . | . . . Spaces Dug . | . . . Terrain Destroyed . | . . . Melee . | . . . Projectile . | . . . AOE . | . . . Terrain Rammed . | . . . Walls Destroyed . | . . . Machines Disabled . | . . . Actions | -11 -10 -10 --------- Run | Yrd Mat Min Total 1303 | 68 997 238 Wait 139 | . 126 13 Move 995 | 50 752 193 Hop . | . . . Pick Up 21 | 7 12 2 Fast Attach 5 | 2 2 1 Attach 9 | 4 2 3 Detach 2 | . . 2 Swap 15 | . 13 2 Drop 13 | . 10 3 Fire 104 | 5 80 19 Melee . | . . . Ram . | . . . Kick . | . . . Crush . | . . . Escape Stasis . | . . . Rewire . | . . . Trap . | . . . Miscellaneous . | . . . Route ------- -11/Scrapyard -10/Materials (discovered 4 exits: [*Mat x3] / [*Min]) -10/Mines History --------- Turn | Location | Event 18 | -11/Scrapyard | Discovered new exit (range 15) 74 | -11/Scrapyard | Entered Materials 315 | -10/Materials | Build established: Mutant 570 | -10/Materials | Discovered new exit (range 9) 784 | -10/Materials | Discovered new exit (range 4) 883 | -10/Materials | Discovered new exit (range 9) 962 | -10/Materials | Discovered new exit (range 5) 1541 | -10/Materials | Entered Mines 1543 | -10/Mines | Core integrity fell below 50% 1695 | -10/Mines | Learned location of Storage (-9) 1793 | -10/Mines | Assembled infested the area 1798 | -10/Mines | Assisted by a Guerilla fighting off Assembled 1810 | -10/Mines | Core integrity fell below 20% 1858 | -10/Mines | Destroyed by D-53 Grenadier with Mini Grenade Launcher Last Messages --------------- coming from, and they're closing on this area, come on!" 01813_ HV Slug penetrates Wall. 01819_ HV Slug penetrates as-38020. 01819_ as-38020 suffers critical hit (Destroy). 01819_ as-38020 knocked back. 01819_ HV Slug penetrates as-38020. 01821_ Acquired 2 matter. 01821_ HV Slug penetrates as-38020. 01821_ as-38020 suffers critical hit (Destroy). 01821_ as-38020 destroyed. 01823_ Acquired 3 matter. 01826_ BJ-ST4(h) shuts down. 01832_ U-05 Engineer builds a Wall. 01836_ C-30 ARC bursts open, deploying its payload. 01836_ D-53 Grenadier unfolds itself. 01851_ D-53 Grenadier suffers critical hit (Destroy). 01856_ Acquired 97 matter. Map ----- +----------------------------------------------------+ | ??????????????????????????????????????????? ????? | | ???????????????????????????????????? ????"" ????? | | ?????????????????????????????????????????"" ????? | | ????????????????????????????????????????? ????? | | ????????????????????????????????????????? ????? | | ?????????????????????????????????????????? ????? | | ?????????????????????????????????????????? ?#??? | | ??????????????????????????????????????#??? #????? | | ???????????????????????????????#??????????# #????? | | ??????????????????????????????????????????# #??#?? | | ??????????????????????????????????????????# ###??? | | ??????????????#?????????????????#???????#?# ##?? | | ??????????????????? ????#####????#?######## % ##? | | ??????????????????# ##### ###????# ## | | ????????????? ????? ##???# ###### | | ????????????#?#???????#?# ##### #????# | | ????????????#????#?????## #???# #### | | ??????????????????????## #### ##???# ##??? | | ????? ?????????#?????## ##??# #???# ##???? | | ????? ???????# ##### #???# #??# #????? | | ???? # ??????# a #???# ### ##????? | | ?#??? ?????######## ##???# #??????# | | ???#??# ????????##### #????# #######??????# | | ??????# ??????## ## ##??## #??????????#?# | | ?#?# *= ?###?# # ##??# #????????????# | | ?????# ###### @ #?## ##???????????# | | ???# dd ### ##??????????? | | ????## # ## ### #??????????? | | ?????# ?# ## ### ######?# #??????????? | | ?????#### # ## ## ### ###???#?### ##?????????? | | ????## ####?????????### ##????????# | | ?????# #???#?????????## ###??????? | | ?????# """ """ """ #????????????## ##??????? | | ?????# """ """ """ #??????#?##### ###????? | | ?????# """ """ """ #????????## ##???? | | ?????? ###??????# #???? | | ?????# """ """ """ #??#????# ##??? | | ?????# """ """ """ #???????# ## #??? | | ????#???"" """ """ #??#????# ### #??? | | ??????????? ? #?#??##?## ##?# #??? | | ?????????????###???#????????## ####??## ##??? | | ?????????????????????#???????####????????# ##???? | | ????????????????????????#?????????????????###????? | | ?????????????????????????????????????????????????? | | | | | | | | | | | | | +----------------------------------------------------+ Best States ------------- Heat Dissipation 35 Energy Generation 14 Energy Capacity 250 Matter Stores 300 Matter Capacity 300 Sight Range 16 Robot Scan Range 14 Terrain Scan Range 16 Terrain Scan Density 10 Evasion (%) 55 Item Schematics ----------------- None Robot Schematics ------------------ None Fabricated ------------ Nothing Alien Tech Used ----------------- None Achievements -------------- None Challenges ------------ None Game ------ Seed InsulatedDecoderManipulator Manual? 0 Play Time 00:13:26 Cumulative 26.1 hours Start 2024.08.07 @ 19:25:28 End 2024.08.07 @ 19:41:54 Sessions 1 Manual Loads 0 Difficulty Rogue Special Mode None Game No. 44 Rogue 40 Adventurer 4 Explorer 0 Win Type - Total 0 Types 0/0/0/0/0/0/0/0/0 Lore% 7 Gallery% 25 Achievement% 17 Wizard Run 0 Options --------- Layout 1 ASCII 0 Keyboard 0 Movement Mouse Keybinds 0 Fullscreen 2 Font 24/Smallcaps Map View 50x35 Zoom Use 0% Tactical HUD 1 Map Filters NONE Filters NONE Steam 1 RUN: 66dab1fc-eb01-4f48-a5cc-96aa56485e45